bitfinex/quotes_BTCUSD_20220307
["timestamp","ask_amount","ask_price","bid_price","bid_amount"]
[1646662443269,0.22035467,39157.0,39154.0,0.0999]
[1646662443469,0.27035467,39157.0,39154.0,0.0999]
[1646662444121,0.26695378,39157.0,39154.0,0.0999]
[1646662444329,0.23175049,39156.0,39154.0,0.0999]
[1646662445925,0.01099835,39155.0,39154.0,0.0999]
[1646662446925,0.01099835,39155.0,39152.0,0.10027894]
[1646662447224,0.01099835,39155.0,39151.0,0.1]
[1646662447425,0.01099835,39155.0,39152.0,0.00037893]
[1646662448471,0.15891016,39154.0,39146.0,0.076638]
[1646662448674,0.22278816,39154.0,39146.0,0.076638]
[1646662448874,0.05,39153.0,39146.0,0.076638]
[1646662449674,0.063876,39152.0,39146.0,0.076638]
[1646662449873,0.01140854,39151.0,39148.0,0.00037897]
[1646662450073,0.0156539,39150.0,39149.0,0.06387]
[1646662450272,0.05,39153.0,39149.0,0.06387]
[1646662450976,0.15,39162.0,39151.0,0.127722]
[1646662450977,0.063865,39162.0,39151.0,0.127722]
[1646662451175,0.00015493,39163.0,39153.0,0.01384311]
[1646662451428,0.17616831,39162.0,39153.0,0.01384311]
[1646662452020,0.24003031,39162.0,39153.0,0.01384311]
[1646662452216,0.24003031,39162.0,39151.0,0.278822]
[1646662452217,0.24003031,39162.0,39152.0,0.00037961]
[1646662452517,0.34003031,39162.0,39155.0,0.063857]
[1646662453322,0.05,39156.0,39152.0,0.00037961]
[1646662453518,0.063868,39155.0,39152.0,0.00037961]
[1646662454416,0.063868,39155.0,39148.0,0.22774]
[1646662454618,0.063868,39155.0,39152.0,0.0003792]
[1646662454818,0.063868,39155.0,39153.0,0.0999]
[1646662455019,0.063868,39155.0,39152.0,0.1281072]
[1646662455268,0.063868,39155.0,39154.0,0.0511]
[1646662457269,0.053868,39155.0,39154.0,0.0511]
[1646662459018,0.03070741,39155.0,39154.0,0.0511]
[1646662460117,0.169318,39153.0,39152.0,0.00037923]
[1646662460520,0.01059984,39152.0,39151.0,0.063874]
[1646662460718,0.01059984,39152.0,39151.0,0.06425325]
[1646662461718,0.01059984,39152.0,39151.0,0.063874]
[1646662464074,0.01059984,39152.0,39150.0,0.0999]
[1646662464274,0.01059984,39152.0,39150.0,0.16414926]
[1646662465274,0.01059984,39152.0,39150.0,0.16377]
[1646662467318,0.54041435,39151.0,39150.0,0.0999]
[1646662467522,0.54041435,39151.0,39145.0,0.006]
[1646662467523,0.19942074,39149.0,39145.0,0.006]
[1646662467719,0.01364961,39148.0,39145.0,0.006]
[1646662468317,0.19857917,39147.0,39145.0,0.006]
[1646662468519,0.19857917,39147.0,39145.0,0.063884]
[1646662468719,0.36246117,39147.0,39145.0,0.063884]
[1646662469119,0.85,39146.0,39144.0,0.00037987]
[1646662469321,0.85,39146.0,39140.0,0.0166]
[1646662469322,0.35,39145.0,39140.0,0.0166]
[1646662469519,0.01462214,39144.0,39140.0,0.0166]
[1646662469719,0.01352176,39143.0,39140.0,0.0166]
[1646662469919,0.01247865,39142.0,39140.0,0.0166]
[1646662470190,0.20697276,39141.0,39140.0,0.0166]
[1646662470594,0.20697276,39141.0,39140.0,0.0136]
[1646662471993,0.20697276,39141.0,39130.0,0.4411]
[1646662471994,1.25,39140.0,39130.0,0.4411]
[1646662472193,1.25,39140.0,39128.0,0.15832696]
[1646662472194,0.15,39138.0,39129.0,0.3569012]
[1646662472392,0.15,39138.0,39128.0,0.0945]
[1646662472393,0.063905,39136.0,39128.0,0.0945]
[1646662472591,0.063905,39136.0,39133.0,0.00041184]
[1646662472793,0.06391663,39135.0,39127.0,0.0016476]
[1646662472992,0.17877775,39128.0,39127.0,0.0016476]
[1646662473191,0.25378775,39128.0,39127.0,0.0016476]
[1646662473592,0.30378775,39128.0,39121.0,0.4847242]
[1646662473792,0.30378775,39128.0,39121.0,0.127823]
[1646662474429,0.30378775,39128.0,39118.0,0.3]
[1646662474430,0.18349514,39122.0,39118.0,0.3]
[1646662474727,0.16588975,39122.0,39118.0,0.1]
[1646662474922,0.16588975,39122.0,39117.0,0.0945]
[1646662474923,0.21588975,39122.0,39117.0,0.0945]
[1646662475524,0.21588975,39122.0,39114.0,0.844]
[1646662475525,0.34375743,39122.0,39114.0,0.844]
[1646662475725,0.34375743,39122.0,39108.0,1.23152784]
[1646662475726,0.063936,39115.0,39110.0,0.01278]
[1646662475923,0.063936,39115.0,39109.0,0.1688]
[1646662476126,0.113936,39115.0,39109.0,0.1688]
[1646662476524,0.19675794,39110.0,39109.0,0.1688]
[1646662476727,0.24675794,39110.0,39109.0,0.1688]
[1646662476933,0.24675794,39110.0,39103.0,0.01477988]
[1646662476934,1.25,39109.0,39103.0,0.01477988]
[1646662477125,1.25,39109.0,39101.0,0.179024]
[1646662477126,0.3,39108.0,39101.0,0.179024]
[1646662477324,1.3,39107.0,39101.0,0.09975079]
[1646662477527,1.3,39107.0,39104.0,0.0004121]
[1646662477528,0.3,39106.0,39104.0,0.0004121]
[1646662477771,0.3,39106.0,39098.0,0.0999]
[1646662477772,0.05,39104.0,39098.0,0.00164866]
[1646662477973,0.063965,39102.0,39098.0,0.00164866]
[1646662478171,0.85,39100.0,39089.0,0.6029]
[1646662478390,0.06853297,39096.0,39089.0,0.6029]
[1646662478771,0.06853297,39096.0,39087.0,0.11518352]
[1646662478772,0.15805745,39093.0,39087.0,0.11518352]
[1646662478972,0.05,39092.0,39087.0,0.10155093]
[1646662479171,0.063969,39091.0,39087.0,0.09655093]
[1646662479371,0.127937,39090.0,39087.0,0.09655093]
[1646662479573,0.177937,39090.0,39089.0,0.0025579]
[1646662480373,0.063969,39093.0,39089.0,0.0025579]
[1646662480574,0.063969,39093.0,39088.0,0.932761]
[1646662480774,0.063969,39093.0,39092.0,0.18836357]
[1646662480971,0.063969,39093.0,39092.0,0.01571258]
[1646662481436,0.063969,39093.0,39091.0,0.063952]
[1646662482128,0.31586694,39092.0,39089.0,0.01278]
[1646662482323,0.31586694,39092.0,39090.0,0.06437109]
[1646662482725,0.127937,39092.0,39090.0,0.06437109]
[1646662483323,0.127937,39092.0,39090.0,0.06396]
[1646662483324,0.122937,39092.0,39090.0,0.06396]
[1646662483724,0.02501,39091.0,39090.0,0.06396]
[1646662484124,0.02501,39091.0,39090.0,0.0660563]
[1646662485781,0.07501,39091.0,39090.0,0.0660563]
[1646662486175,0.07501,39091.0,39090.0,0.0020963]
[1646662486576,0.12501,39091.0,39090.0,0.0020963]
[1646662489216,0.07501,39091.0,39090.0,0.0020963]
[1646662489418,0.07501,39091.0,39090.0,0.00044401]
[1646662489619,0.02501,39091.0,39090.0,0.00044401]
[1646662490218,0.07501,39091.0,39090.0,0.00044401]
[1646662490821,0.02501,39091.0,39090.0,0.00044401]
[1646662491619,0.02501,39091.0,39090.0,0.15044401]
[1646662491826,0.1998,39100.0,39096.0,0.08327639]
[1646662492022,0.1998,39100.0,39099.0,0.06379748]
[1646662492023,0.00018814,39100.0,39099.0,0.06379748]
[1646662492325,0.00018814,39100.0,39099.0,1.16973748]
[1646662492524,0.1,39115.0,39102.0,0.01530284]
[1646662492777,0.1998,39116.0,39106.0,0.05261066]
[1646662492975,0.1998,39116.0,39107.0,0.36608608]
[1646662493175,0.2499999,39123.0,39107.0,0.36608608]
[1646662493374,0.21290759,39119.0,39111.0,0.19954398]
[1646662493575,0.127847,39117.0,39112.0,0.0511]
[1646662493777,0.127847,39117.0,39113.0,0.063924]
[1646662493979,0.127847,39117.0,39114.0,0.0511]
[1646662494775,0.17648024,39116.0,39114.0,0.0511]
[1646662495178,0.17648024,39116.0,39104.0,0.23461375]
[1646662495179,1.25,39115.0,39104.0,0.23461375]
[1646662495381,0.17284268,39107.0,39104.0,0.19524418]
[1646662495576,0.17284268,39107.0,39101.0,0.19524418]
[1646662495776,0.16029587,39106.0,39100.0,0.0999]
[1646662496276,0.16029587,39106.0,39100.0,0.127885]
[1646662496922,0.06413471,39105.0,39100.0,0.127885]
[1646662497321,0.06413471,39105.0,39098.0,0.0511]
[1646662497723,0.063947,39105.0,39098.0,0.0511]
[1646662497922,0.00018771,39103.0,39098.0,0.0511]
[1646662498123,0.127907,39102.0,39098.0,0.0511]
[1646662498322,0.20023505,39099.0,39098.0,0.0511]
[1646662498922,0.20023505,39099.0,39098.0,0.151]
[1646662499322,0.063953,39101.0,39098.0,0.151]
[1646662499924,0.1280947,39102.0,39098.0,0.151]
[1646662499925,0.0001877,39102.0,39098.0,0.151]
[1646662500177,0.063942,39103.0,39101.0,0.01200644]
[1646662500379,0.12787976,39118.0,39101.0,0.01200644]
[1646662500380,0.20539629,39114.0,39103.0,0.7793]
[1646662500580,0.20539629,39114.0,39102.0,0.07664]
[1646662500581,0.01351885,39113.0,39107.0,0.21521829]
[1646662500775,0.01351885,39113.0,39108.0,0.0511]
[1646662501174,0.063929,39111.0,39108.0,0.0511]
[1646662501382,0.063929,39111.0,39109.0,0.01292057]
[1646662501576,0.063929,39111.0,39110.0,0.0511]
[1646662501776,0.063929,39111.0,39102.0,0.191781]
[1646662501977,0.063929,39111.0,39097.0,0.86853826]
[1646662501978,0.493229,39111.0,39097.0,0.22313017]
[1646662502176,0.493229,39111.0,39093.0,0.16203211]
[1646662502177,0.063958,39100.0,39093.0,0.16203211]
[1646662502377,0.063958,39100.0,39092.0,0.063959]
[1646662502378,0.07589551,39098.0,39092.0,0.063959]
[1646662502777,0.07589551,39098.0,39097.0,0.05949708]
[1646662502980,0.07589551,39098.0,39097.0,0.12329456]
[1646662503183,0.07589551,39098.0,39097.0,0.92813456]
[1646662503377,1.97762794,39116.0,39097.0,0.92813456]
[1646662503378,0.063932,39101.0,39097.0,1.12923456]
[1646662503579,0.3,39115.0,39099.0,0.80484]
[1646662503780,0.268548,39127.0,39122.0,0.06478753]
[1646662503781,0.01277,39127.0,39122.0,0.06478753]
[1646662504036,0.39196289,39130.0,39123.0,0.33128184]
[1646662504236,0.01378548,39129.0,39124.0,0.1511]
[1646662504636,0.17862278,39126.0,39125.0,0.1]
[1646662504837,0.17862278,39126.0,39125.0,0.1511]
[1646662505035,0.17862278,39126.0,39125.0,0.0511]
[1646662505437,0.17862278,39126.0,39125.0,0.151]
[1646662505639,0.35169077,39126.0,39125.0,0.0999]
[1646662505837,0.17862278,39126.0,39125.0,0.0999]
[1646662506036,0.17862278,39126.0,39125.0,0.0511]
[1646662506540,0.06434271,39128.0,39125.0,0.0511]
[1646662506541,0.00018771,39127.0,39125.0,0.0511]
[1646662506738,0.00018771,39127.0,39126.0,0.063909]
[1646662506938,0.00018771,39127.0,39126.0,0.115009]
[1646662507339,0.113901,39129.0,39126.0,0.115009]
[1646662507539,0.22046352,39128.0,39126.0,0.115009]
[1646662507773,0.00018771,39128.0,39126.0,0.115009]
[1646662508572,0.364394,39130.0,39126.0,0.115009]
[1646662508774,0.300503,39130.0,39126.0,0.115009]
[1646662508972,0.2366,39130.0,39126.0,0.115009]
[1646662509173,0.2366,39130.0,39126.0,0.215009]
[1646662509372,0.01264926,39128.0,39127.0,0.3]
[1646662509574,0.01264926,39128.0,39127.0,0.3511]
[1646662509774,0.01264926,39128.0,39127.0,0.4511]
[1646662510372,0.01264926,39128.0,39127.0,0.1511]
[1646662510776,0.01264926,39128.0,39127.0,0.3511]
[1646662510974,0.01264926,39128.0,39127.0,0.4511]
[1646662511817,0.01264926,39128.0,39127.0,0.1511]
[1646662512217,0.01264926,39128.0,39127.0,0.3511]
[1646662512616,0.01264926,39128.0,39127.0,0.4511]
[1646662514018,0.01264926,39128.0,39127.0,0.1511]
[1646662514218,0.01264926,39128.0,39127.0,0.05530917]
[1646662514417,0.01264926,39128.0,39127.0,0.30520917]
[1646662514617,0.01264926,39128.0,39127.0,0.15530917]
[1646662515673,0.01264926,39128.0,39127.0,0.05530917]
[1646662515875,0.00764926,39128.0,39127.0,0.0511]
[1646662516080,0.00764926,39128.0,39122.0,0.0999]
[1646662516081,1.25,39126.0,39118.0,0.191724]
[1646662516376,1.25,39126.0,39113.0,0.15]
[1646662516377,0.07184235,39119.0,39113.0,0.15]
[1646662516575,0.3,39118.0,39113.0,0.15]
[1646662516774,0.00132463,39116.0,39113.0,0.15]
[1646662516974,0.42500608,39115.0,39113.0,0.15]
[1646662517174,0.48894508,39115.0,39113.0,0.15]
[1646662517375,0.48894508,39115.0,39103.0,0.41559584]
[1646662517574,0.21129496,39109.0,39103.0,0.41559584]
[1646662517774,0.21129496,39109.0,39105.0,0.0999]
[1646662518174,0.063938,39109.0,39105.0,0.0999]
[1646662518577,0.063938,39109.0,39097.0,0.2011]
[1646662518578,0.06412571,39109.0,39097.0,0.2011]
[1646662518923,0.06412571,39109.0,39105.0,0.063944]
[1646662519320,0.063938,39109.0,39106.0,0.0999]
[1646662519720,0.06412571,39109.0,39106.0,0.0999]
[1646662519920,0.19203334,39109.0,39106.0,0.0999]
[1646662520321,0.05324435,39108.0,39106.0,0.0999]
[1646662520524,0.05324435,39108.0,39100.0,0.15]
[1646662520525,0.51402843,39107.0,39100.0,0.15]
[1646662520730,0.51402843,39107.0,39090.0,0.0007]
[1646662520731,0.51402843,39107.0,39096.0,0.00038361]
[1646662520732,0.063962,39103.0,39096.0,0.00038361]
[1646662520922,1.35,39106.0,39096.0,0.00038361]
[1646662520923,0.15,39101.0,39096.0,0.00038361]
[1646662521130,0.05,39103.0,39096.0,0.00038361]
[1646662521320,0.1,39103.0,39096.0,0.00038361]
[1646662521524,0.1713579,39102.0,39096.0,0.00038361]
[1646662521720,0.26308003,39098.0,39090.0,0.0007]
[1646662521923,0.1747094,39093.0,39090.0,0.0007]
[1646662522320,0.00132463,39092.0,39090.0,0.0007]
[1646662523075,0.00132463,39092.0,39091.0,0.0999]
[1646662525077,0.0133354,39092.0,39091.0,0.0999]
[1646662526920,0.07537253,39092.0,39091.0,0.0999]
[1646662527118,0.07537253,39092.0,39091.0,0.0949]
[1646662527323,0.9,39091.0,39086.0,0.15]
[1646662527523,0.06398799,39089.0,39086.0,0.154]
[1646662527722,0.31498165,39088.0,39086.0,0.154]
[1646662527923,1.86472448,39087.0,39074.0,0.01]
[1646662528122,0.20207671,39078.0,39074.0,0.005]
[1646662528325,0.08678396,39077.0,39074.0,0.005]
[1646662528530,0.01369286,39076.0,39074.0,0.005]
[1646662530873,0.064002,39078.0,39074.0,0.005]
[1646662531476,0.064002,39078.0,39075.0,0.18621825]
[1646662531874,0.064002,39078.0,39074.0,0.13337983]
[1646662532075,0.3,39077.0,39069.0,0.15987931]
[1646662532275,0.596345,39077.0,39068.0,0.00163558]
[1646662532475,0.30507127,39073.0,39068.0,0.00163558]
[1646662532675,0.00632463,39070.0,39064.0,0.4939]
[1646662532875,0.17974435,39070.0,39063.0,0.21786905]
[1646662533074,0.00132463,39066.0,39063.0,0.21786905]
[1646662533277,0.00632463,39070.0,39065.0,0.00255898]
[1646662533485,0.00632463,39070.0,39066.0,0.01278]
[1646662533677,0.00632463,39070.0,39066.0,0.7793]
[1646662533971,0.00632463,39070.0,39067.0,1.19208]
[1646662534169,0.00632463,39070.0,39069.0,1.00658696]
[1646662534371,0.00632463,39070.0,39069.0,1.43212696]
[1646662534569,0.00128652,39075.0,39073.0,0.80484]
[1646662534770,0.00128652,39075.0,39074.0,1.1793]
[1646662534968,0.00128652,39075.0,39074.0,1.18708]
[1646662535268,0.00128652,39075.0,39074.0,1.25087748]
[1646662535469,0.00128652,39075.0,39074.0,1.50018675]
[1646662535767,0.00128652,39075.0,39074.0,0.4]
[1646662535969,0.00128652,39075.0,39074.0,0.1]
[1646662536168,0.18549934,39085.0,39074.0,0.1]
[1646662536369,0.2346,39105.0,39074.0,0.1]
[1646662536370,0.2,39106.0,39084.0,0.15]
[1646662536570,0.06497008,39104.0,39088.0,0.05422662]
[1646662536769,0.5,39108.0,39093.0,0.7793]
[1646662536974,0.5,39108.0,39096.0,0.0999]
[1646662537171,0.0011,39110.0,39099.0,0.127887]
[1646662537172,0.20305047,39105.0,39099.0,0.127887]
[1646662537368,0.20305047,39105.0,39100.0,0.0471]
[1646662537369,0.1694263,39103.0,39100.0,0.0471]
[1646662537570,0.1694263,39103.0,39097.0,0.15]
[1646662537571,0.077339,39099.0,39097.0,0.15]
[1646662537979,0.06692661,39098.0,39097.0,0.15]
[1646662538380,0.24951437,39098.0,39094.0,0.127909]
[1646662538579,0.18018473,39097.0,39094.0,0.127909]
[1646662539181,0.24415173,39097.0,39094.0,0.127909]
[1646662539780,0.24415173,39097.0,39093.0,0.127932]
[1646662540180,0.24434551,39097.0,39093.0,0.127932]
[1646662540681,0.05811435,39096.0,39093.0,0.127932]
[1646662540884,0.19846497,39096.0,39093.0,0.127932]
[1646662541082,0.05,39095.0,39089.0,0.127947]
[1646662541282,0.2016192,39090.0,39089.0,0.127947]
[1646662541729,0.44412664,39090.0,39089.0,0.127947]
[1646662541929,0.49412664,39090.0,39083.0,0.15]
[1646662542129,0.49412664,39090.0,39080.0,0.0999]
[1646662542130,0.28690713,39087.0,39080.0,0.0999]
[1646662542325,0.40377803,39087.0,39080.0,0.0999]
[1646662542925,0.063995,39086.0,39080.0,0.163894]
[1646662543129,0.31613803,39087.0,39081.0,0.3]
[1646662543326,0.1,39087.0,39081.0,0.3]
[1646662543526,0.05,39087.0,39081.0,0.3]
[1646662543727,0.00019378,39086.0,39081.0,0.3]
[1646662543928,0.00019378,39086.0,39083.0,0.18229212]
[1646662544228,0.2404,39103.0,39085.0,0.191878]
[1646662544428,0.1998,39106.0,39086.0,0.3471]
[1646662544827,0.17356806,39100.0,39091.0,0.16597659]
[1646662545029,0.1998,39107.0,39094.0,0.063953]
[1646662545276,0.44998275,39106.0,39095.0,0.0471]
[1646662545874,0.17873916,39100.0,39095.0,0.3471]
[1646662546175,0.17580943,39098.0,39095.0,0.3471]
[1646662546377,0.17580943,39098.0,39095.0,0.0471]
[1646662547376,0.22580943,39098.0,39095.0,0.0471]
[1646662548179,0.28976743,39098.0,39095.0,0.0471]
[1646662548379,0.33976743,39098.0,39095.0,0.0471]
[1646662548579,0.33996072,39098.0,39095.0,0.0471]
[1646662548778,0.1998,39096.0,39095.0,0.0471]
[1646662549219,0.2498,39096.0,39095.0,0.0471]
[1646662549620,0.05,39096.0,39095.0,0.0471]
[1646662549827,0.255835,39101.0,39095.0,0.0471]
[1646662549828,0.28188759,39105.0,39103.0,0.191869]
[1646662550019,0.28188759,39105.0,39103.0,0.255824]
[1646662550020,0.16670134,39105.0,39103.0,0.255824]
[1646662550421,0.06653934,39104.0,39103.0,0.255824]
[1646662550822,0.35572788,39105.0,39103.0,0.255824]
[1646662551021,0.35572788,39105.0,39103.0,0.191869]
[1646662551422,0.16670134,39105.0,39103.0,0.191869]
[1646662551621,0.17270134,39105.0,39103.0,0.191869]
[1646662552121,0.06043171,39104.0,39103.0,0.191869]
[1646662552779,0.39529872,39105.0,39103.0,0.191869]
[1646662552980,0.25,39108.0,39103.0,0.191869]
[1646662552981,0.1,39108.0,39103.0,0.191869]
[1646662553380,0.1,39108.0,39102.0,0.063954]
[1646662553381,0.00019329,39106.0,39102.0,0.063954]
[1646662553582,0.00019329,39106.0,39098.0,0.255814]
[1646662553583,0.15,39103.0,39098.0,0.255814]
[1646662553782,0.15,39103.0,39086.0,0.571]
[1646662553783,0.3,39102.0,39086.0,0.571]
[1646662553982,0.3,39101.0,39096.0,0.063986]
[1646662554181,0.1,39102.0,39096.0,0.063986]
[1646662554580,0.2198721,39098.0,39096.0,0.063986]
[1646662555182,0.2198721,39098.0,39086.0,0.762937]
[1646662555382,0.3,39097.0,39095.0,0.127958]
[1646662555582,0.2228721,39098.0,39095.0,0.127958]
[1646662555982,0.3,39097.0,39095.0,0.127958]
[1646662556182,0.2228721,39098.0,39095.0,0.127958]
[1646662557021,0.21806539,39098.0,39095.0,0.127958]
[1646662557420,0.21506539,39098.0,39095.0,0.127958]
[1646662558324,0.31506539,39098.0,39095.0,0.127958]
[1646662559222,0.3148721,39098.0,39095.0,0.127958]
[1646662559422,0.31503355,39098.0,39095.0,0.127958]
[1646662559621,0.32003355,39098.0,39095.0,0.127958]
[1646662560298,0.3198721,39098.0,39095.0,0.127958]
[1646662560496,0.32003355,39098.0,39095.0,0.127958]
[1646662560896,0.31503355,39098.0,39095.0,0.127958]
[1646662561096,0.36503355,39098.0,39095.0,0.127958]
[1646662561496,0.3648721,39098.0,39095.0,0.127958]
[1646662561699,0.36503355,39098.0,39095.0,0.127958]
[1646662562299,0.31503355,39098.0,39095.0,0.127958]
[1646662562501,0.10016145,39098.0,39095.0,0.127958]
[1646662562701,0.24002013,39101.0,39095.0,0.127958]
[1646662562905,0.00016145,39098.0,39095.0,0.127958]
[1646662563301,0.22148409,39109.0,39095.0,0.175058]
[1646662563500,0.2009,39110.0,39095.0,0.175058]
[1646662563501,0.18993724,39108.0,39098.0,0.20579758]
[1646662563700,0.18993724,39108.0,39100.0,0.22225121]
[1646662563934,0.40961409,39110.0,39100.0,0.22225121]
[1646662563935,0.26979231,39110.0,39100.0,0.22225121]
[1646662564131,0.26979231,39110.0,39100.0,0.063953]
[1646662564327,0.20871409,39109.0,39100.0,0.063953]
[1646662565028,0.06660922,39104.0,39100.0,0.063953]
[1646662565434,0.3,39108.0,39100.0,0.063953]
[1646662565629,0.006,39104.0,39100.0,0.063953]
[1646662566632,0.396012,39103.0,39100.0,0.063953]
[1646662566830,0.491012,39103.0,39100.0,0.063953]
[1646662567030,0.491012,39103.0,39089.0,0.01277]
[1646662567031,0.396012,39101.0,39089.0,0.01277]
[1646662567233,0.396037,39095.0,39085.0,0.255875]
[1646662567531,0.396037,39093.0,39085.0,0.255875]
[1646662567782,0.1,39092.0,39085.0,0.255875]
[1646662567986,0.1,39092.0,39087.0,0.063986]
[1646662568184,0.1,39092.0,39085.0,0.255875]
[1646662568185,0.21221415,39089.0,39086.0,0.063975]
[1646662568585,0.26221415,39089.0,39087.0,0.005159]
[1646662568784,0.26221415,39089.0,39086.0,0.255895]
[1646662568985,0.05,39089.0,39087.0,0.005158]
[1646662569192,0.2,39092.0,39087.0,0.069144]
[1646662569384,0.1,39092.0,39087.0,0.063986]
[1646662569586,0.1,39096.0,39088.0,0.005155]
[1646662569784,0.00019284,39100.0,39091.0,0.16715475]
[1646662569785,0.30427516,39099.0,39091.0,0.16715475]
[1646662569984,0.1,39099.0,39092.0,0.005145]
[1646662570188,0.27600724,39101.0,39093.0,0.063964]
[1646662570385,0.27600724,39101.0,39094.0,0.005141]
[1646662570386,0.00019286,39100.0,39094.0,0.005141]
[1646662570786,0.00019286,39100.0,39095.0,0.005141]
[1646662570986,0.00019286,39100.0,39099.0,0.17574511]
[1646662571187,0.20871409,39107.0,39098.0,0.063954]
[1646662571445,0.20871409,39108.0,39098.0,0.363954]
[1646662572043,0.20871409,39108.0,39098.0,0.063954]
[1646662572243,0.16794598,39105.0,39098.0,0.063954]
[1646662572645,0.26794598,39105.0,39098.0,0.063954]
[1646662573447,0.06396621,39104.0,39098.0,0.063954]
[1646662573845,0.20773563,39099.0,39098.0,0.063954]
[1646662574046,0.20773563,39099.0,39095.0,0.063977]
[1646662574047,0.60377263,39099.0,39095.0,0.063977]
[1646662574250,0.60377263,39099.0,39088.0,0.4977]
[1646662574251,0.27268808,39096.0,39088.0,0.4977]
[1646662574448,0.3,39095.0,39086.0,0.5999]
[1646662574646,0.27268808,39096.0,39087.0,0.005152]
[1646662574845,0.27268808,39096.0,39086.0,0.0999]
[1646662574846,0.3,39095.0,39089.0,0.21605608]
[1646662575046,0.1,39098.0,39089.0,0.34401708]
[1646662575279,0.1,39098.0,39090.0,0.005148]
[1646662575478,0.15,39098.0,39089.0,0.34401708]
[1646662575680,0.15,39098.0,39089.0,0.127961]
[1646662576076,0.25300965,39096.0,39091.0,0.063969]
[1646662576277,0.30300965,39096.0,39091.0,0.063969]
[1646662577478,0.05,39096.0,39091.0,0.063969]
[1646662577677,0.05,39097.0,39091.0,0.063969]
[1646662577877,0.004,39096.0,39091.0,0.063969]
[1646662578278,0.004,39096.0,39093.0,0.127945]
[1646662578482,0.004,39096.0,39094.0,0.069113]
[1646662578680,0.004,39096.0,39095.0,0.363959]
[1646662578933,0.004,39096.0,39095.0,0.305143]
[1646662579132,0.00019287,39100.0,39095.0,0.005143]
[1646662579333,0.00019287,39100.0,39096.0,0.00514]
[1646662579632,0.00019287,39100.0,39093.0,0.63317945]
[1646662579633,0.31044984,39104.0,39093.0,0.63317945]
[1646662579835,0.00019288,39100.0,39094.0,0.005137]
[1646662580433,0.00019288,39100.0,39093.0,0.127945]
[1646662580635,0.00019288,39100.0,39090.0,0.127948]
[1646662580838,0.1,39100.0,39090.0,0.127948]
[1646662581037,0.10019288,39100.0,39090.0,0.127948]
[1646662581435,0.40019288,39100.0,39090.0,0.127948]
[1646662581638,0.46416597,39100.0,39093.0,0.063985]
[1646662582036,0.46397309,39100.0,39093.0,0.063985]
[1646662582237,0.46416597,39100.0,39093.0,0.063985]
[1646662582437,0.16416597,39100.0,39093.0,0.063985]
[1646662583277,0.12796115,39099.0,39093.0,0.063985]
[1646662583479,0.06398044,39099.0,39093.0,0.063985]
[1646662583877,0.05,39098.0,39093.0,0.063985]
[1646662584079,0.40419288,39100.0,39093.0,0.063985]
[1646662584279,0.12796217,39099.0,39093.0,0.063985]
[1646662584578,0.06398052,39097.0,39093.0,0.063985]
[1646662585280,0.30890696,39100.0,39093.0,0.063985]
[1646662585281,0.10019287,39100.0,39093.0,0.063985]
[1646662585480,0.15,39100.0,39093.0,0.063985]
[1646662585679,0.45,39100.0,39093.0,0.063985]
[1646662585880,0.15019288,39100.0,39093.0,0.063985]
[1646662586737,0.15,39100.0,39093.0,0.063985]
[1646662587138,0.15019288,39100.0,39094.0,0.16874375]
[1646662587337,0.15019288,39100.0,39094.0,0.16360475]
[1646662587638,0.00019288,39100.0,39095.0,0.005141]
[1646662588036,0.20871409,39102.0,39095.0,0.005141]
[1646662588237,0.20871409,39106.0,39098.0,0.06395]
[1646662588439,0.31307114,39111.0,39100.0,0.29167567]
[1646662588440,0.20981409,39110.0,39100.0,0.29167567]
[1646662588638,0.20981409,39110.0,39105.0,0.15]
[1646662588639,0.0011,39110.0,39105.0,0.15]
[1646662588839,0.1011,39116.0,39109.0,0.0999]
[1646662588840,0.0011,39116.0,39109.0,0.0999]
[1646662589040,0.0011,39116.0,39112.0,0.07066752]
[1646662589238,0.20871409,39121.0,39120.0,0.17164097]
[1646662589437,0.21683588,39124.0,39120.0,0.17164097]
[1646662589637,0.20871409,39125.0,39120.0,0.17164097]
[1646662590185,0.20871409,39127.0,39121.0,0.36949575]
[1646662590382,0.26089262,39129.0,39122.0,0.174929]
[1646662590383,0.20871409,39129.0,39122.0,0.174929]
[1646662590582,0.20981409,39130.0,39123.0,0.50642561]
[1646662590783,0.0011,39130.0,39126.0,0.19884962]
[1646662590983,0.0011,39130.0,39127.0,0.3]
[1646662591182,0.0011,39130.0,39126.0,0.24594962]
[1646662591587,0.0011,39130.0,39126.0,0.37376462]
[1646662591883,0.00129241,39130.0,39127.0,0.06391]
[1646662592082,0.21212078,39130.0,39127.0,0.06391]
[1646662592883,0.21192837,39130.0,39127.0,0.06391]
[1646662593283,0.21212078,39130.0,39127.0,0.06391]
[1646662593483,0.3,39129.0,39127.0,0.06391]
[1646662593686,0.36393384,39129.0,39123.0,0.063936]
[1646662593936,0.17716117,39124.0,39123.0,0.063936]
[1646662594138,0.4,39129.0,39123.0,0.063936]
[1646662594336,0.00019241,39128.0,39123.0,0.063936]
[1646662595139,0.17458613,39126.0,39123.0,0.063936]
[1646662595338,0.2011,39130.0,39123.0,0.063936]
[1646662595536,0.2011,39130.0,39116.0,0.01277]
[1646662595537,1.45,39129.0,39104.0,0.4229839]
[1646662595738,0.005,39126.0,39112.0,0.0471]
[1646662595938,0.063938,39125.0,39113.0,0.01277]
[1646662596138,0.063938,39125.0,39119.0,0.063935]
[1646662596337,0.005,39126.0,39119.0,0.063935]
[1646662596740,0.20297826,39122.0,39119.0,0.063935]
[1646662596937,0.00019241,39124.0,39119.0,0.063935]
[1646662597781,0.1,39128.0,39119.0,0.063935]
[1646662597976,0.00019241,39123.0,39119.0,0.063935]
[1646662598275,0.00148562,39115.0,39114.0,0.01277]
[1646662598674,0.00148562,39115.0,39114.0,0.26268167]
[1646662598875,0.00148562,39115.0,39114.0,0.26368167]
[1646662599075,0.00148562,39115.0,39114.0,0.38766907]
[1646662599280,0.00148562,39115.0,39114.0,0.57948784]